fUST/lending_fUST_20250406
["ID","MTS","AMOUNT","RATE_DAILY","PERIOD"]
[357198433,1743888632502,-272.07162368,0.000239,2]
[357198434,1743888632514,-1829.34367484,0.000239,2]
[357198435,1743888632526,-7207.26959106,0.000239,2]
[357198446,1743888638032,-7612.56570231,0.000239,2]
[357198447,1743888638042,-202034.75303838,0.00024,2]
[357198448,1743888638164,-3851.14303734,0.00024,2]
[357198449,1743888638176,-6696.90015969,0.00024,2]
[357198451,1743888638636,-10069.5813415,0.00024,2]
[357198452,1743888638648,-739.30559893,0.00024,2]
[357198453,1743888640407,-796.76260512,0.00024,2]
[357198454,1743888640468,-395.11512087,0.00024,2]
[357198455,1743888640480,-1211.49676063,0.00024,2]
[357198479,1743888643174,-17176.4281236,0.00024,2]
[357198480,1743888643234,-695.0686426,0.00024,2]
[357198481,1743888643246,-1479.18339428,0.00024,2]
[357198497,1743888646420,-2770.71511623,0.00024,2]
[357198498,1743888646432,-463.3,0.00024,2]
[357198500,1743888646447,-105759.217197,0.00024,2]
[357198526,1743889539158,-150.0,0.0002306,2]
[357198527,1743889539179,-429.5677014,0.00023171,2]
[357198528,1743889539200,-163.0557279,0.00023279,2]
[357198529,1743889539221,-18.28032673,0.00023394,2]
[357198532,1743889630261,-163.0557279,0.00023279,2]
[357198533,1743889630288,-163.63018445,0.00023293,2]
[357198534,1743889630309,-729.16666667,0.00023375,2]
[357198535,1743889630331,-160.0,0.00023394,2]
[357198536,1743889630355,-500.0,0.00023469,2]
[357198537,1743889630380,-500.0,0.00023469,2]
[357198538,1743889630403,-500.0,0.00023469,2]
[357198539,1743889630426,-500.0,0.00023469,2]
[357198540,1743889630447,-300.0,0.00023469,2]
[357198541,1743889630469,-500.0,0.00023469,2]
[357198542,1743889630491,-8876.8038037,0.0002347,2]
[357198543,1743889630514,-163.63018444,0.00023564,2]
[357198544,1743889630536,-500.0,0.00023664,2]
[357198545,1743889630558,-160.0,0.00023713,2]
[357198546,1743889630579,-419.20823938,0.00023713,2]
[357198547,1743889630602,-500.0,0.00023743,2]
[357198548,1743889630630,-874.5,0.00023802,15]
[357198549,1743889630654,-1303.62031383,0.000239,5]
[357198550,1743889630677,-21001.24901084,0.00024,2]
[357198573,1743889832610,-150.0,0.0002306,2]
[357198574,1743889832620,-163.0557279,0.00023279,2]
[357198575,1743889832630,-160.0,0.00023362,2]
[357198576,1743889832639,-26.9442721,0.00023362,2]
[357198601,1743889838202,-150.0,0.0002306,2]
[357198603,1743889838212,-10908.98963198,0.00023362,2]
[357198605,1743889838222,-500.0,0.00023469,2]
[357198608,1743889838232,-154.99,0.00023469,2]
[357198610,1743889838242,-184.4,0.00023469,2]
[357198612,1743889838251,-500.0,0.00023664,2]
[357198614,1743889838261,-36203.72870741,0.00024,2]
[357198616,1743889838273,-5988.09279208,0.00024,2]
[357198618,1743889838283,-2940.03693147,0.00024,2]
[357198648,1743889838459,-4201.65157013,0.00024,2]
[357198700,1743889840480,-1867.854828,0.00024,2]
[357198703,1743889840493,-2808.88207405,0.00024,2]
[357198705,1743889840505,-51501.36558038,0.00024,2]
[357198707,1743889840514,-2952.0654858,0.00024,2]
[357198709,1743889840524,-530.91844074,0.00024,2]
[357198711,1743889840533,-26143.13055978,0.00024,2]
[357198992,1743889843404,-30624.98519702,0.00024,2]
[357198994,1743889843416,-12907.36412238,0.00024,2]
[357198996,1743889843427,-1759.24354994,0.00024,2]
[357201745,1743891032610,-155.386168,0.00022366,2]
[357201746,1743891032620,-150.0,0.0002306,2]
[357201747,1743891032629,-355.933832,0.00023096,2]
[357201772,1743891038591,-4652.315513,0.00023096,2]
[357201773,1743891038603,-160.0,0.00023388,2]
[357201774,1743891038612,-474.94321926,0.00023428,2]
[357202083,1743891043621,-419.20823938,0.00023333,2]
[357202085,1743891043631,-788.35616534,0.00023428,2]
[357202087,1743891043640,-500.0,0.00023664,2]
[357202089,1743891043650,-155.386168,0.0002376,4]
[357202091,1743891043660,-1272.28169902,0.000239,5]
[357202093,1743891043673,-14787.1206597,0.00024,2]
[357202406,1743891046742,-542.48,0.00024,2]
[357202414,1743891046804,-441.8099972,0.00024,2]
[357203049,1743891943133,-488.0946285,0.00022706,2]
[357203050,1743891943154,-289.8768495,0.00023279,2]
[357203051,1743891943175,-160.0,0.000233,2]
[357203052,1743891943195,-150.0,0.0002336,2]
[357203053,1743891943215,-538.601,0.0002336,2]
[357203054,1743891943236,-729.0,0.0002336,2]
[357203055,1743891943257,-401.0,0.0002336,2]
[357203056,1743891943278,-300.0,0.00023463,2]
[357203057,1743891943298,-971.35637737,0.00023464,2]
[357203058,1743891943319,-190.23558621,0.00023464,2]
[357203059,1743891943338,-2706.05973827,0.00023464,2]
[357203067,1743892053124,-176.849,0.00022746,2]
[357203068,1743892053147,-300.0,0.00023463,2]
[357203069,1743892053170,-16265.06907425,0.00023464,3]
[357203070,1743892053196,-31746.46905436,0.00023464,3]
[357203133,1743892232671,-150.0,0.0002336,2]
[357203134,1743892232681,-151.0,0.00023449,2]
[357203135,1743892232691,-151.0,0.00023449,2]
[357203136,1743892232700,-151.0,0.00023449,2]
[357203137,1743892232710,-151.0,0.00023449,2]
[357203138,1743892232719,-151.0,0.00023449,2]
[357203139,1743892232729,-151.0,0.00023449,2]
[357203140,1743892232739,-151.0,0.00023449,2]
[357203141,1743892232748,-151.0,0.00023449,2]
[357203142,1743892232758,-778.98,0.00023454,3]
[357203143,1743892232768,-389.49,0.00023454,3]
[357203144,1743892232777,-194.75,0.00023454,3]
[357203145,1743892232786,-300.0,0.00023462,2]
[357203146,1743892232796,-500.0,0.00023463,2]
[357203147,1743892232805,-500.0,0.00023463,2]
[357203148,1743892232814,-500.0,0.00023463,2]
[357203149,1743892232823,-36735.49168035,0.00023463,2]
[357203150,1743892232833,-500.0,0.00023463,2]
[357203151,1743892232842,-500.0,0.00023463,2]
[357203152,1743892232852,-500.0,0.00023463,2]
[357203153,1743892232862,-500.0,0.00023463,2]
[357203154,1743892232871,-500.0,0.00023463,2]
[357203155,1743892232882,-500.0,0.00023463,2]
[357203156,1743892232893,-500.0,0.00023463,2]
[357203157,1743892232904,-418.72816033,0.00023463,2]
[357203158,1743892232914,-500.0,0.00023463,2]
[357203159,1743892232925,-500.0,0.00023463,2]
[357203160,1743892232934,-500.0,0.00023463,2]
[357203161,1743892232943,-500.0,0.00023463,2]
[357203162,1743892232952,-500.0,0.00023463,2]
[357203163,1743892232963,-500.0,0.00023463,2]
[357203164,1743892232973,-500.0,0.00023463,2]
[357203165,1743892232983,-500.0,0.00023463,2]
[357203166,1743892232994,-187.75691794,0.00023463,2]
[357203167,1743892233003,-500.0,0.00023463,2]
[357203168,1743892233013,-500.0,0.00023463,2]
[357203169,1743892233022,-500.0,0.00023463,2]
[357203170,1743892233031,-500.0,0.00023463,2]
[357203171,1743892233040,-500.0,0.00023463,2]
[357203172,1743892233050,-352.07951525,0.00023463,2]
[357203173,1743892233059,-8132.53453713,0.00023464,3]
[357203174,1743892233069,-78016.47031688,0.00023464,3]
[357203175,1743892233078,-419.20823938,0.00023464,3]
[357203176,1743892233088,-2098.93196063,0.00023464,2]
[357203177,1743892233098,-262.40042732,0.00023464,2]
[357203178,1743892233107,-500.0,0.00023473,2]
[357203179,1743892233116,-500.0,0.00023473,2]
[357203180,1743892233125,-500.0,0.00023473,2]
[357203181,1743892233135,-256.3555329,0.00023546,2]
[357203182,1743892233144,-519.31373106,0.00023564,2]
[357203183,1743892233154,-500.0,0.00023638,2]
[357203184,1743892233163,-500.0,0.00023664,2]
[357203185,1743892233173,-500.0,0.00023737,2]
[357203186,1743892233183,-500.0,0.00023737,2]
[357203187,1743892233193,-500.0,0.00023737,2]
[357203188,1743892233203,-2200.0,0.0002376,2]
[357203189,1743892233212,-1670.38511874,0.000239,5]
[357203190,1743892233221,-63307.78153366,0.00024,2]
[357203203,1743892238478,-399.82719863,0.00023171,2]
[357203205,1743892238491,-8152.21897647,0.00023171,2]
[357203206,1743892238500,-11954.70727048,0.00024,2]
[357203207,1743892238511,-5442.89767146,0.00024,2]
[357203208,1743892238523,-1649.302789,0.00024,2]
[357203209,1743892238534,-1929.35351999,0.00024,2]
[357203210,1743892238584,-5400.44976745,0.00024,2]
[357203211,1743892238595,-946.37722602,0.00024,2]
[357203212,1743892238607,-4783.70808809,0.00024,2]
[357203213,1743892238618,-12060.86560707,0.00024,2]
[357203214,1743892238629,-38658.55605152,0.00024,2]
[357203215,1743892238642,-641.74840451,0.00024,2]
[357203254,1743892240826,-16018.11798473,0.00024,2]
[357203257,1743892240836,-500.0,0.00024011,2]
[357203259,1743892240846,-500.0,0.00024011,2]
[357203261,1743892240855,-275.96272884,0.00024011,2]
[357203263,1743892240864,-500.0,0.00024048,2]
[357203265,1743892240874,-500.0,0.00024048,2]
[357203266,1743892240883,-608.4,0.00024048,2]
[357203268,1743892240893,-500.0,0.00024049,2]
[357203270,1743892240902,-500.0,0.00024049,2]
[357203272,1743892240911,-201.0,0.0002405,2]
[357203274,1743892240920,-160.0,0.0002406,2]
[357203277,1743892240929,-160.0,0.0002408,2]
[357203279,1743892240938,-419.20823938,0.0002408,2]
[357203281,1743892240947,-116545.39851326,0.000241,2]
[357203283,1743892240959,-21659.1559954,0.000241,2]
[357203286,1743892240970,-750.82011137,0.000241,2]
[357203288,1743892240982,-41032.52171151,0.000241,2]
[357203290,1743892240993,-290.77627598,0.000241,2]
[357203554,1743892243698,-652.22438701,0.000241,2]
[357203556,1743892243710,-1483.22075354,0.000241,2]
[357203564,1743892243769,-358.64655292,0.000241,2]
[357203889,1743892246730,-500.0,0.00023463,2]
[357203891,1743892246739,-152.9500001,0.00023737,2]
[357203899,1743892246808,-347.0499999,0.00023737,2]
[357203901,1743892246818,-270.46652466,0.00023918,10]
[357203903,1743892246827,-500.0,0.00024011,2]
[357203905,1743892246837,-9393.31083638,0.000241,2]
[357205889,1743893144149,-160.0,0.00023287,2]
[357205890,1743893144170,-419.20823938,0.00023287,2]
[357205891,1743893144189,-318.0,0.00023376,90]
[357205892,1743893144209,-174.4451753,0.00023376,2]
[357205893,1743893144229,-200.0,0.00023463,2]
[357205894,1743893144249,-105.58238374,0.00023463,2]
[357205895,1743893250135,-429.5677014,0.00022634,2]
[357205896,1743893250161,-174.4451754,0.00023376,2]
[357205897,1743893250185,-176.55643102,0.00023463,2]
[357205898,1743893250207,-205.11859607,0.00023463,2]
[357205899,1743893250229,-1298.27499237,0.0002357,2]
[357205900,1743893250251,-160.0,0.0002357,2]
[357205901,1743893250273,-190.2355862,0.0002357,2]
[357205902,1743893250295,-6000.0,0.000236,2]
[357205903,1743893250316,-500.0,0.00023663,2]
[357205904,1743893250336,-500.0,0.00023664,2]
[357205905,1743893250356,-50000.0,0.00023664,2]
[357205906,1743893250378,-500.0,0.0002367,2]
[357205907,1743893250400,-500.0,0.0002367,2]
[357205908,1743893250422,-500.0,0.0002367,2]
[357205909,1743893250444,-500.0,0.0002367,2]
[357205910,1743893250466,-500.0,0.0002367,2]
[357205911,1743893250488,-372.46444661,0.0002367,2]
[357205912,1743893250511,-500.0,0.0002367,2]
[357205913,1743893250532,-500.0,0.00023679,2]
[357205914,1743893250555,-180.14,0.00023679,2]
[357205915,1743893250576,-500.0,0.00023679,2]
[357205916,1743893250599,-500.0,0.00023679,2]
[357205917,1743893250619,-150.0,0.0002368,2]
[357205918,1743893250639,-401.0,0.0002368,2]
[357205919,1743893250659,-918.78,0.0002368,2]
[357205920,1743893250679,-2255.0,0.0002368,2]
[357205921,1743893250700,-500.0,0.00023937,2]
[357205922,1743893250722,-500.0,0.00023944,2]
[357205923,1743893250744,-500.0,0.00023944,2]
[357205924,1743893250767,-500.0,0.00023944,2]
[357205925,1743893250792,-500.0,0.00023944,2]
[357205926,1743893250813,-500.0,0.00023953,2]
[357205927,1743893250834,-48689.97828327,0.000241,2]
[357205959,1743893431929,-1720.0000008,0.000231,2]
[357205960,1743893431953,-437.72669973,0.000231,2]
[357205961,1743893432052,-9053.28308387,0.000231,2]
[357205962,1743893432061,-174.4451754,0.00023376,2]
[357205963,1743893432070,-419.20823938,0.00023542,2]
[357205964,1743893432080,-500.0,0.0002367,2]
[357205965,1743893432088,-160.0,0.0002367,2]
[357205966,1743893432098,-500.0,0.00023944,2]
[357205967,1743893432110,-152.70314045,0.00024057,5]
[357205968,1743893432119,-1611.09006204,0.00024073,2]
[357205969,1743893432128,-1135.99061835,0.00024073,2]
[357205970,1743893432138,-9143.94657936,0.000241,2]
[357205971,1743893432149,-200.0,0.00024145,2]
[357205972,1743893432159,-551.78,0.0002415,3]
[357205973,1743893432167,-275.89,0.0002415,3]
[357205974,1743893432177,-827.7,0.0002415,3]
[357205975,1743893432187,-183.85757115,0.00024159,2]
[357205976,1743893432196,-500.0,0.00024159,2]
[357205977,1743893432205,-500.0,0.00024159,2]
[357205978,1743893432215,-155.26499709,0.00024159,2]
[357205979,1743893432224,-243.08410199,0.00024159,2]
[357205980,1743893432234,-500.0,0.00024159,2]
[357205981,1743893432244,-500.0,0.00024159,2]
[357205982,1743893432253,-170.05939022,0.00024159,2]
[357205983,1743893432262,-500.0,0.00024159,2]
[357205984,1743893432272,-500.0,0.00024159,2]
[357205985,1743893432284,-500.0,0.00024159,2]
[357205986,1743893432293,-121906.03522941,0.0002416,2]
[357205997,1743893437686,-150.0,0.0002368,2]
[357205999,1743893437697,-28357.40676685,0.0002416,2]
[357206010,1743893438073,-76361.03952757,0.0002416,2]
[357206011,1743893438084,-616.97023573,0.0002416,2]
[357206013,1743893440199,-860.0,0.0002416,2]
[357206015,1743893440211,-545.1936999,0.0002416,2]
[357206316,1743893442911,-9002.4341828,0.0002416,2]
[357206327,1743893443008,-3106.32140761,0.0002416,2]
[357206329,1743893443021,-737.16808519,0.0002416,2]
[357206331,1743893443032,-338.18235704,0.0002416,2]
[357206637,1743893445959,-29649.72519936,0.0002416,2]
[357206640,1743893445971,-1256.5261519,0.0002416,2]
[357207016,1743894450140,-399.5072358,0.00021831,2]
[357207017,1743894450161,-182.994512,0.0002214,2]
[357207018,1743894450185,-198.9639731,0.00022217,2]
[357207019,1743894450207,-1556.4901541,0.00022387,2]
[357207020,1743894450229,-2297.0554639,0.00022496,2]
[357207021,1743894450250,-160.0,0.00022753,2]
[357207022,1743894450273,-300.0,0.00022804,2]
[357207023,1743894450294,-309.681315,0.00022805,2]
[357207024,1743894450315,-500.0,0.00022805,2]
[357207025,1743894450335,-500.0,0.00022805,2]
[357207026,1743894450356,-203.70107194,0.00022805,2]
[357207027,1743894450377,-15981.4739002,0.00023061,2]
[357207028,1743894450399,-31914.80855642,0.00023061,2]
[357207029,1743894450419,-1011.7699973,0.00023163,2]
[357207030,1743894450443,-1651.16778351,0.00023335,2]
[357207031,1743894450464,-261.15736424,0.00023335,2]
[357207032,1743894450485,-165.8232274,0.00023435,2]
[357207033,1743894450506,-500.0,0.00023673,2]
[357207034,1743894450527,-500.0,0.00023686,2]
[357207035,1743894450550,-500.0,0.00023686,2]
[357207036,1743894450724,-500.0,0.00023686,2]
[357207037,1743894450751,-500.0,0.00023686,2]
[357207038,1743894450772,-150.0,0.00023686,2]
[357207039,1743894450795,-150.0,0.00023686,2]
[357207040,1743894450816,-401.0,0.00023686,2]
[357207041,1743894450837,-152.0,0.00023797,2]
[357207042,1743894450859,-3349.20551994,0.000239,5]
[357207043,1743894450881,-52520.96628945,0.00023913,2]
[357207123,1743894632160,-500.0,0.0002306,2]
[357207124,1743894632169,-500.0,0.00023334,2]
[357207125,1743894632179,-165.8232275,0.00023435,2]
[357207126,1743894632188,-500.0,0.00023608,2]
[357207127,1743894632197,-500.0,0.00023686,2]
[357207128,1743894632206,-500.0,0.00023686,2]
[357207129,1743894632215,-1074.06004136,0.00023847,2]
[357207130,1743894632224,-2055.66627764,0.00023847,2]
[357207131,1743894632233,-500.0,0.00023882,2]
[357207132,1743894632243,-300.0,0.00023899,2]
[357207133,1743894632253,-196.39030354,0.00023899,2]
[357207134,1743894632262,-3237.565336,0.000239,5]
[357207135,1743894632271,-500.0,0.00023912,2]
[357207136,1743894632281,-540.75214288,0.00023912,2]
[357207137,1743894632290,-500.0,0.00023912,2]
[357207138,1743894632299,-500.0,0.00023912,2]
[357207139,1743894632308,-317479.03371055,0.00023913,2]
[357207140,1743894632319,-160.0,0.00023933,2]
[357207141,1743894632329,-419.20823938,0.00023933,2]
[357207142,1743894632339,-160.0,0.00023933,2]
[357207143,1743894632348,-12522.71377557,0.00023933,2]
[357207144,1743894632357,-500.0,0.0002396,2]
[357207145,1743894632366,-500.0,0.0002396,2]
[357207146,1743894632375,-500.0,0.00023973,2]
[357207147,1743894632384,-500.0,0.00023973,2]
[357207148,1743894632393,-500.0,0.00023973,2]
[357207149,1743894632402,-500.0,0.00023973,2]
[357207150,1743894632411,-462.11479194,0.00023973,2]
[357207151,1743894632420,-500.0,0.00023973,2]
[357207152,1743894632429,-365.56208421,0.00023973,2]
[357207153,1743894632438,-500.0,0.00023973,2]
[357207154,1743894632447,-500.0,0.00023973,2]
[357207155,1743894632457,-500.0,0.00023973,2]
[357207156,1743894632466,-500.0,0.00023973,2]
[357207157,1743894632476,-278.01943339,0.00023973,2]
[357207158,1743894632485,-500.47915512,0.00023973,2]
[357207159,1743894632495,-400.0,0.00023973,2]
[357207160,1743894632504,-500.0,0.00023973,2]
[357207161,1743894632514,-500.0,0.00023973,2]
[357207162,1743894632523,-500.0,0.00023973,2]
[357207163,1743894632533,-500.0,0.00023973,2]
[357207164,1743894632543,-500.0,0.00023973,2]
[357207165,1743894632553,-500.0,0.00023973,2]
[357207166,1743894632562,-500.0,0.00023973,2]
[357207167,1743894632572,-500.0,0.00023973,2]
[357207168,1743894632582,-500.0,0.00023973,2]
[357207169,1743894632591,-293.41731728,0.00023973,2]
[357207170,1743894632601,-500.0,0.00023973,2]
[357207171,1743894632610,-500.0,0.00023973,2]
[357207172,1743894632620,-500.0,0.00023973,2]
[357207173,1743894632629,-152.0,0.00023979,2]
[357207174,1743894632639,-346.87250618,0.00024052,2]
[357207175,1743894632648,-500.0,0.00024063,2]
[357207176,1743894632658,-200.0,0.00024145,2]
[357207177,1743894632667,-500.0,0.0002415,7]
[357207178,1743894632676,-500.0,0.00024156,2]
[357207179,1743894632686,-4601.92750445,0.0002416,3]
[357207180,1743894632695,-39008.23515844,0.0002416,3]
[357207181,1743894632704,-70372.15804803,0.0002416,3]
[357207182,1743894632717,-10398.27872328,0.0002416,3]
[357207183,1743894632727,-160.0,0.0002416,3]
[357207184,1743894632737,-500.69334496,0.00024173,2]
[357207185,1743894632746,-500.0,0.00024173,2]
[357207186,1743894632756,-159.99952845,0.00024173,2]
[357207187,1743894632767,-500.0,0.00024173,2]
[357207188,1743894632779,-500.0,0.00024173,2]
[357207189,1743894632788,-500.0,0.00024173,2]
[357207190,1743894632797,-565.38530628,0.00024173,2]
[357207191,1743894632806,-594.65960246,0.00024173,2]
[357207192,1743894632816,-254.91781883,0.00024173,2]
[357207193,1743894632826,-151.890996,0.00024185,3]
[357207194,1743894632835,-500.0,0.00024186,2]
[357207195,1743894632845,-500.0,0.00024186,2]
[357207196,1743894632856,-169543.4380551,0.000242,2]
[357207197,1743894632869,-1999.99999,0.000242,2]
[357207227,1743894637954,-327.53,0.00023903,3]
[357207229,1743894637964,-101.8594,0.000242,2]
[357207256,1743894638207,-13355.47161649,0.000242,2]
[357207353,1743894640320,-64999.23093841,0.000242,2]
[357207355,1743894640330,-5000.0,0.000242,2]
[357207357,1743894640340,-500.0,0.00024233,2]
[357207359,1743894640350,-500.0,0.00024233,2]
[357207361,1743894640359,-200.0,0.00024259,2]
[357207363,1743894640369,-500.0,0.00024337,2]
[357207365,1743894640378,-500.0,0.0002435,7]
[357207367,1743894640388,-880.96,0.000244,2]
[357207369,1743894640397,-500.0,0.0002443,2]
[357207371,1743894640406,-3237.56533574,0.00024452,5]
[357207373,1743894640416,-500.0,0.0002446,2]
[357207375,1743894640425,-500.0,0.0002446,2]
[357207377,1743894640435,-10781.10574051,0.000245,4]
[357207379,1743894640444,-200.0,0.000245,3]
[357207381,1743894640454,-500.0,0.00024507,2]
[357207383,1743894640466,-500.0,0.00024507,2]
[357207386,1743894640476,-193.0,0.00024519,2]
[357207387,1743894640486,-201.0,0.0002454,2]
[357207390,1743894640495,-500.0,0.0002455,7]
[357207391,1743894640504,-500.0,0.00024611,2]
[357207394,1743894640514,-201.0,0.0002465,2]
[357207395,1743894640523,-22823.23699225,0.00024651,2]
[357207398,1743894640533,-200.0,0.00024658,15]
[357207400,1743894640542,-160.0,0.0002468,3]
[357207402,1743894640551,-2111.67,0.000247,7]
[357207404,1743894640560,-274.0,0.000247,4]
[357207406,1743894640570,-500.0,0.00024704,2]
[357207408,1743894640580,-500.0,0.00024734,2]
[357207410,1743894640589,-500.0,0.00024734,2]
[357207412,1743894640599,-500.0,0.0002475,7]
[357207414,1743894640608,-166.83508303,0.00024771,2]
[357207416,1743894640618,-500.0,0.00024781,2]
[357207418,1743894640629,-500.0,0.00024781,2]
[357207420,1743894640638,-663.16286343,0.000248,14]
[357207422,1743894640647,-470.97,0.000248,14]
[357207424,1743894640656,-638.15,0.000248,14]
[357207426,1743894640665,-229.45,0.000248,14]
[357207428,1743894640675,-151.0,0.000248,9]
[357207430,1743894640684,-151.0,0.000248,8]
[357207432,1743894640693,-151.0,0.000248,8]
[357207434,1743894640703,-151.0,0.000248,7]
[357207436,1743894640712,-151.0,0.000248,7]
[357207438,1743894640721,-166.811138,0.000248,7]
[357207440,1743894640731,-331.567469,0.000248,7]
[357207442,1743894640739,-151.0,0.000248,7]
[357207444,1743894640749,-331.567469,0.000248,7]
[357207446,1743894640758,-151.0,0.000248,7]
[357207448,1743894640768,-150.08,0.000248,14]
[357207450,1743894640781,-150.08,0.000248,14]
[357207452,1743894640791,-150.08,0.000248,9]
[357207454,1743894640800,-151.0,0.000248,6]
[357207456,1743894640810,-151.0,0.000248,9]
[357207458,1743894640820,-248.76049975,0.000248,14]
[357207460,1743894640829,-151.0,0.000248,7]
[357207462,1743894640839,-176.552962,0.000248,7]
[357207464,1743894640850,-176.552962,0.000248,7]
[357207466,1743894640859,-192.247062,0.000248,7]
[357207468,1743894640869,-192.247062,0.000248,7]
[357207470,1743894640878,-151.0,0.000248,7]
[357207472,1743894640888,-151.0,0.000248,7]
[357207474,1743894640897,-151.0,0.000248,7]
[357207476,1743894640906,-151.0,0.000248,7]
[357207478,1743894640915,-214.046682,0.000248,7]
[357207481,1743894640932,-214.046682,0.000248,7]
[357207484,1743894640944,-151.0,0.000248,7]
[357207486,1743894640954,-151.0,0.000248,7]
[357207488,1743894640963,-151.0,0.000248,7]
[357207490,1743894640973,-937.344684,0.000248,7]
[357207492,1743894640983,-937.344684,0.000248,7]
[357207494,1743894640993,-430.252073,0.000248,7]
[357207496,1743894641002,-151.0,0.000248,7]
[357207498,1743894641013,-151.0,0.000248,7]
[357207500,1743894641022,-151.0,0.000248,7]
[357207502,1743894641031,-150.09,0.000248,14]
[357207503,1743894641041,-151.0,0.000248,6]
[357207504,1743894641050,-151.0,0.000248,7]
[357207505,1743894641060,-598.43315,0.000248,7]
[357207506,1743894641069,-598.43315,0.000248,7]
[357207507,1743894641079,-151.0,0.000248,2]
[357207508,1743894641089,-151.0,0.000248,2]
[357207509,1743894641098,-151.0,0.000248,7]
[357207510,1743894641107,-1620.286422,0.000248,7]
[357207511,1743894641117,-1620.286422,0.000248,7]
[357207512,1743894641126,-480.136536,0.000248,7]
[357207513,1743894641136,-480.136536,0.000248,7]
[357207514,1743894641145,-150.09,0.000248,14]
[357207515,1743894641155,-150.09,0.000248,14]
[357207517,1743894641164,-168.51118898,0.000248,14]
[357207519,1743894641173,-207.18132457,0.000248,14]
[357207521,1743894641182,-166.22750742,0.000248,14]
[357207523,1743894641191,-150.09,0.000248,14]
[357207525,1743894641201,-500.0,0.000248,14]
[357207527,1743894641210,-315.570992,0.000248,7]
[357207529,1743894641219,-150.09,0.000248,14]
[357207531,1743894641228,-315.570992,0.000248,7]
[357207533,1743894641238,-174.457983,0.000248,7]
[357207535,1743894641248,-174.457983,0.000248,7]
[357207537,1743894641257,-151.0,0.000248,7]
[357207539,1743894641267,-151.0,0.000248,7]
[357207541,1743894641276,-151.0,0.000248,7]
[357207543,1743894641286,-150.09,0.000248,14]
[357207545,1743894641295,-163.648187,0.000248,7]
[357207547,1743894641304,-163.648187,0.000248,7]
[357207549,1743894641313,-198.27193513,0.000248,14]
[357207551,1743894641323,-292.85760076,0.000248,14]
[357207553,1743894641332,-150.19680552,0.000248,14]
[357207555,1743894641342,-221.9926883,0.000248,14]
[357207557,1743894641351,-154.658104,0.000248,7]
[357207559,1743894641360,-150.09,0.000248,14]
[357207561,1743894641369,-150.09,0.000248,14]
[357207563,1743894641379,-500.0,0.000248,14]
[357207565,1743894641388,-154.658104,0.000248,7]
[357207567,1743894641398,-150.09,0.000248,14]
[357207569,1743894641407,-150.09,0.000248,14]
[357207571,1743894641416,-150.09,0.000248,2]
[357207573,1743894641426,-150.09,0.000248,14]
[357207575,1743894641435,-197.77798,0.000248,7]
[357207577,1743894641444,-150.09,0.000248,14]
[357207579,1743894641454,-150.09,0.000248,2]
[357207581,1743894641463,-150.09,0.000248,14]
[357207583,1743894641473,-197.77798,0.000248,7]
[357207585,1743894641482,-151.0,0.000248,7]
[357207587,1743894641492,-151.0,0.000248,7]
[357207589,1743894641502,-151.0,0.000248,7]
[357207591,1743894641511,-151.0,0.000248,7]